Workbook

Sheet Dataset
B2: Calculating Percentage Decrease
B4: Brand | C4: Device | D4: Old Price | E4: New Price
B5: Omicron | C5: Desktop | D5: 980 | E5: 900
B6: Codemy | C6: Notebook | D6: 650 | E6: 500
B7: Gamind | C7: Desktop | D7: 870 | E7: 860
B8: Inchip | C8: Desktop | D8: 1020 | E8: 700
B9: Bytec | C9: Notebook | D9: 1100 | E9: 750
B10: Omicron | C10: Notebook | D10: 860 | E10: 690
B11: Codemy | C11: Desktop | D11: 490 | E11: 270
B12: Gamind | C12: Notebook | D12: 620 | E12: 500
B13: Bytec | C13: Desktop | D13: 780 | E13: 700
B14: Omicron | C14: Desktop | D14: 880 | E14: 800
B15: Inchip | C15: Notebook | D15: 670 | E15: 500
B16: Omicron | C16: Notebook | D16: 1200 | E16: 1000

Sheet Using Mathematical Formula
B2: Using Mathematical Formula | L2: Do It Yourself
B4: Brand | C4: Device | D4: Old Price | E4: New Price | F4: % Change | L4: Brand | M4: Device | N4: Old Price | O4: New Price | P4: % Change
B5: Omicron | C5: Desktop | D5: 980 | E5: 900 | F5: =(E5-D5)/D5 -> -0.08163265306 | L5: Omicron | M5: Desktop | N5: 980 | O5: 900
B6: Codemy | C6: Notebook | D6: 650 | E6: 500 | F6: =(E6-D6)/D6 -> -0.2307692308 | L6: Codemy | M6: Notebook | N6: 650 | O6: 500
B7: Gamind | C7: Desktop | D7: 870 | E7: 860 | F7: -0.01149425287 | L7: Gamind | M7: Desktop | N7: 870 | O7: 860
B8: Inchip | C8: Desktop | D8: 1020 | E8: 700 | F8: -0.3137254902 | L8: Inchip | M8: Desktop | N8: 1020 | O8: 700
B9: Bytec | C9: Notebook | D9: 1100 | E9: 750 | F9: -0.3181818182 | L9: Bytec | M9: Notebook | N9: 1100 | O9: 750
B10: Omicron | C10: Notebook | D10: 860 | E10: 690 | F10: -0.1976744186 | L10: Omicron | M10: Notebook | N10: 860 | O10: 690
B11: Codemy | C11: Desktop | D11: 490 | E11: 270 | F11: -0.4489795918 | L11: Codemy | M11: Desktop | N11: 490 | O11: 270
B12: Gamind | C12: Notebook | D12: 620 | E12: 500 | F12: -0.1935483871 | L12: Gamind | M12: Notebook | N12: 620 | O12: 500
B13: Bytec | C13: Desktop | D13: 780 | E13: 700 | F13: -0.1025641026 | L13: Bytec | M13: Desktop | N13: 780 | O13: 700
B14: Omicron | C14: Desktop | D14: 880 | E14: 800 | F14: -0.09090909091 | L14: Omicron | M14: Desktop | N14: 880 | O14: 800
B15: Inchip | C15: Notebook | D15: 670 | E15: 500 | F15: -0.2537313433 | L15: Inchip | M15: Notebook | N15: 670 | O15: 500
B16: Omicron | C16: Notebook | D16: 1200 | E16: 1000 | F16: -0.1666666667 | L16: Omicron | M16: Notebook | N16: 1200 | O16: 1000

Sheet Specific Value
B2: Using Mathematical Formula | L2: Do It Yourself
B4: Brand | C4: Device | D4: Old Price | E4: New Price | F4: % Change | L4: Brand | M4: Device | N4: Old Price | O4: New Price | P4: % Change
B5: Omicron | C5: Desktop | D5: 980 | E5: 900 | F5: -0.0816 | L5: Omicron | M5: Desktop | N5: 980 | O5: 900
B6: Codemy | C6: Notebook | D6: 650 | E6: 500 | F6: -0.2308 | L6: Codemy | M6: Notebook | N6: 650 | O6: 500
B7: Gamind | C7: Desktop | D7: 870 | E7: 860 | F7: -0.0115 | L7: Gamind | M7: Desktop | N7: 870 | O7: 860
B8: Inchip | C8: Desktop | D8: 1020 | E8: 700 | F8: -0.3137 | L8: Inchip | M8: Desktop | N8: 1020 | O8: 700
B9: Bytec | C9: Notebook | D9: 1100 | E9: 750 | F9: -0.3182 | L9: Bytec | M9: Notebook | N9: 1100 | O9: 750
B10: Omicron | C10: Notebook | D10: 860 | E10: 690 | F10: -0.1977 | L10: Omicron | M10: Notebook | N10: 860 | O10: 690
B11: Codemy | C11: Desktop | D11: 490 | E11: 270 | F11: -0.449 | L11: Codemy | M11: Desktop | N11: 490 | O11: 270
B12: Gamind | C12: Notebook | D12: 620 | E12: 500 | F12: -0.1935 | L12: Gamind | M12: Notebook | N12: 620 | O12: 500
B13: Bytec | C13: Desktop | D13: 780 | E13: 700 | F13: -0.1026 | L13: Bytec | M13: Desktop | N13: 780 | O13: 700
B14: Omicron | C14: Desktop | D14: 880 | E14: 800 | F14: -0.0909 | L14: Omicron | M14: Desktop | N14: 880 | O14: 800
B15: Inchip | C15: Notebook | D15: 670 | E15: 500 | F15: -0.2537 | L15: Inchip | M15: Notebook | N15: 670 | O15: 500
B16: Omicron | C16: Notebook | D16: 1200 | E16: 1000 | F16: -0.1667 | L16: Omicron | M16: Notebook | N16: 1200 | O16: 1000
B18: Maximum Price | C18: =MAX(D5:D16) -> 1200

Sheet Using VBA
B2: Using VBA | L2: Do It Yourself
B4: Brand | C4: Device | D4: Old Price | E4: New Price | F4: % Change | L4: Brand | M4: Device | N4: Old Price | O4: New Price | P4: % Change
B5: Omicron | C5: Desktop | D5: 980 | E5: 900 | F5: -0.0816 | L5: Omicron | M5: Desktop | N5: 980 | O5: 900
B6: Codemy | C6: Notebook | D6: 650 | E6: 500 | F6: -0.2308 | L6: Codemy | M6: Notebook | N6: 650 | O6: 500
B7: Gamind | C7: Desktop | D7: 870 | E7: 860 | F7: -0.0115 | L7: Gamind | M7: Desktop | N7: 870 | O7: 860
B8: Inchip | C8: Desktop | D8: 1020 | E8: 700 | F8: -0.3137 | L8: Inchip | M8: Desktop | N8: 1020 | O8: 700
B9: Bytec | C9: Notebook | D9: 1100 | E9: 750 | F9: -0.3182 | L9: Bytec | M9: Notebook | N9: 1100 | O9: 750
B10: Omicron | C10: Notebook | D10: 860 | E10: 690 | F10: -0.1977 | L10: Omicron | M10: Notebook | N10: 860 | O10: 690
B11: Codemy | C11: Desktop | D11: 490 | E11: 270 | F11: -0.449 | L11: Codemy | M11: Desktop | N11: 490 | O11: 270
B12: Gamind | C12: Notebook | D12: 620 | E12: 500 | F12: -0.1935 | L12: Gamind | M12: Notebook | N12: 620 | O12: 500
B13: Bytec | C13: Desktop | D13: 780 | E13: 700 | F13: -0.1026 | L13: Bytec | M13: Desktop | N13: 780 | O13: 700
B14: Omicron | C14: Desktop | D14: 880 | E14: 800 | F14: -0.0909 | L14: Omicron | M14: Desktop | N14: 880 | O14: 800
B15: Inchip | C15: Notebook | D15: 670 | E15: 500 | F15: -0.2537 | L15: Inchip | M15: Notebook | N15: 670 | O15: 500
B16: Omicron | C16: Notebook | D16: 1200 | E16: 1000 | F16: -0.1667 | L16: Omicron | M16: Notebook | N16: 1200 | O16: 1000

Sheet Both Values Negative
B2: Calculate Percentage Change for Negative Values | M2: Do It Yourself
B4: City | C4: State | D4: Old Temp | E4: New Temp | F4: % Change | M4: City | N4: State | O4: Old Temp | P4: New Temp | Q4: % Change
B5: New York | C5: New York | D5: -5.2 | E5: -6.4 | F5: =(D5-E5)/D5 -> -0.2307692308 | M5: New York | N5: New York | O5: -5.2 | P5: -6.4
B6: Los Angeles | C6: California | D6: -2.6 | E6: -3 | F6: =(D6-E6)/D6 -> -0.1538461538 | M6: Los Angeles | N6: California | O6: -2.6 | P6: -3
B7: Chicago | C7: Illinois | D7: -8.9 | E7: -9.5 | F7: -0.06741573034 | M7: Chicago | N7: Illinois | O7: -8.9 | P7: -9.5
B8: Miami | C8: Florida | D8: -1 | E8: -1.4 | F8: -0.4 | M8: Miami | N8: Florida | O8: -1 | P8: -1.4
B9: Seattle | C9: Washington | D9: -3.8 | E9: -4 | F9: -0.05263157895 | M9: Seattle | N9: Washington | O9: -3.8 | P9: -4
B10: Dallas | C10: Texas | D10: -1 | E10: -1.5 | F10: -0.5 | M10: Dallas | N10: Texas | O10: -1 | P10: -1.5

Sheet New Values Negative
B2: Calculate Percentage Change for Negative Values | M2: Do It Yourself
B4: City | C4: State | D4: Old Temp | E4: New Temp | F4: % Change | M4: City | N4: State | O4: Old Temp | P4: New Temp | Q4: % Change
B5: New York | C5: New York | D5: 3 | E5: -0.4 | F5: =(E5-D5)/D5 -> -1.133333333 | M5: New York | N5: New York | O5: 3 | P5: -0.4
B6: Los Angeles | C6: California | D6: 2.6 | E6: -1 | F6: =(E6-D6)/D6 -> -1.384615385 | M6: Los Angeles | N6: California | O6: 2.6 | P6: -1
B7: Chicago | C7: Illinois | D7: 8 | E7: -2.5 | F7: -1.3125 | M7: Chicago | N7: Illinois | O7: 8 | P7: -2.5
B8: Miami | C8: Florida | D8: 10 | E8: -1.5 | F8: -1.15 | M8: Miami | N8: Florida | O8: 10 | P8: -1.5
B9: Seattle | C9: Washington | D9: 3.8 | E9: -2 | F9: -1.526315789 | M9: Seattle | N9: Washington | O9: 3.8 | P9: -2
B10: Dallas | C10: Texas | D10: 1 | E10: -1 | F10: -2 | M10: Dallas | N10: Texas | O10: 1 | P10: -1

Sheet Determine Values after Change
B2: Determining Values after Percentage Increase or Decrease | N2: Do It Yourself
B4: Brand | C4: Device | D4: Old Price | E4: % Change | F4: New Price | N4: Brand | O4: Device | P4: Old Price | Q4: % Change | R4: New Price
B5: Omicron | C5: Desktop | D5: 980 | E5: -0.1 | F5: =D5*(1+E5) -> 882 | N5: Omicron | O5: Desktop | P5: 980 | Q5: -0.1
B6: Codemy | C6: Notebook | D6: 650 | E6: -0.15 | F6: =D6*(1+E6) -> 552.5 | N6: Codemy | O6: Notebook | P6: 650 | Q6: -0.15
B7: Gamind | C7: Desktop | D7: 870 | E7: -0.05 | F7: 826.5 | N7: Gamind | O7: Desktop | P7: 870 | Q7: -0.05
B8: Inchip | C8: Desktop | D8: 1020 | E8: -0.12 | F8: 897.6 | N8: Inchip | O8: Desktop | P8: 1020 | Q8: -0.12
B9: Bytec | C9: Notebook | D9: 1100 | E9: -0.07 | F9: 1023 | N9: Bytec | O9: Notebook | P9: 1100 | Q9: -0.07
B10: Omicron | C10: Notebook | D10: 860 | E10: -0.1 | F10: 774 | N10: Omicron | O10: Notebook | P10: 860 | Q10: -0.1
B11: Codemy | C11: Desktop | D11: 490 | E11: -0.05 | F11: 465.5 | N11: Codemy | O11: Desktop | P11: 490 | Q11: -0.05
B12: Gamind | C12: Notebook | D12: 620 | E12: -0.13 | F12: 539.4 | N12: Gamind | O12: Notebook | P12: 620 | Q12: -0.13
B13: Bytec | C13: Desktop | D13: 780 | E13: -0.03 | F13: 756.6 | N13: Bytec | O13: Desktop | P13: 780 | Q13: -0.03
B14: Omicron | C14: Desktop | D14: 880 | E14: -0.06 | F14: 827.2 | N14: Omicron | O14: Desktop | P14: 880 | Q14: -0.06
B15: Inchip | C15: Notebook | D15: 670 | E15: -0.14 | F15: 576.2 | N15: Inchip | O15: Notebook | P15: 670 | Q15: -0.14
B16: Omicron | C16: Notebook | D16: 1000 | E16: -0.1 | F16: 900 | N16: Omicron | O16: Notebook | P16: 1000 | Q16: -0.1

Sheet Percentage Decrease
B2: Using Specific Percentage Decrease | O2: Do It Yourself
B4: Discount | C4: 0.12 | O4: Discount | P4: 0.12
B6: Brand | C6: Device | D6: Old Price | E6: New Price | O6: Brand | P6: Device | Q6: Old Price | R6: New Price
B7: Omicron | C7: Desktop | D7: 980 | E7: =D7*(1-$C$4) -> 862.4 | O7: Omicron | P7: Desktop | Q7: 980
B8: Codemy | C8: Notebook | D8: 650 | E8: =D8*(1-$C$4) -> 572 | O8: Codemy | P8: Notebook | Q8: 650
B9: Gamind | C9: Desktop | D9: 870 | E9: 765.6 | O9: Gamind | P9: Desktop | Q9: 870
B10: Inchip | C10: Desktop | D10: 1020 | E10: 897.6 | O10: Inchip | P10: Desktop | Q10: 1020
B11: Bytec | C11: Notebook | D11: 1100 | E11: 968 | O11: Bytec | P11: Notebook | Q11: 1100
B12: Omicron | C12: Notebook | D12: 860 | E12: 756.8 | O12: Omicron | P12: Notebook | Q12: 860
B13: Codemy | C13: Desktop | D13: 490 | E13: 431.2 | O13: Codemy | P13: Desktop | Q13: 490
B14: Gamind | C14: Notebook | D14: 620 | E14: 545.6 | O14: Gamind | P14: Notebook | Q14: 620
B15: Bytec | C15: Desktop | D15: 780 | E15: 686.4 | O15: Bytec | P15: Desktop | Q15: 780
B16: Omicron | C16: Desktop | D16: 880 | E16: 774.4 | O16: Omicron | P16: Desktop | Q16: 880
B17: Inchip | C17: Notebook | D17: 670 | E17: 589.6 | O17: Inchip | P17: Notebook | Q17: 670
B18: Omicron | C18: Notebook | D18: 1000 | E18: 880 | O18: Omicron | P18: Notebook | Q18: 1000

Sheet Percentage Increase
B2: Calculating Percentage Increase | L2: Do It Yourself
B4: Brand | C4: Device | D4: Old Price | E4: New Price | F4: % Change | L4: Brand | M4: Device | N4: Old Price | O4: New Price | P4: % Change
B5: Omicron | C5: Desktop | D5: 980 | E5: 1000 | F5: =(E5-D5)/D5 -> 0.02040816327 | L5: Omicron | M5: Desktop | N5: 980 | O5: 1000
B6: Codemy | C6: Notebook | D6: 650 | E6: 800 | F6: =(E6-D6)/D6 -> 0.2307692308 | L6: Codemy | M6: Notebook | N6: 650 | O6: 800
B7: Gamind | C7: Desktop | D7: 870 | E7: 1000 | F7: 0.1494252874 | L7: Gamind | M7: Desktop | N7: 870 | O7: 1000
B8: Inchip | C8: Desktop | D8: 1020 | E8: 1200 | F8: 0.1764705882 | L8: Inchip | M8: Desktop | N8: 1020 | O8: 1200
B9: Bytec | C9: Notebook | D9: 1100 | E9: 1300 | F9: 0.1818181818 | L9: Bytec | M9: Notebook | N9: 1100 | O9: 1300
B10: Omicron | C10: Notebook | D10: 860 | E10: 900 | F10: 0.04651162791 | L10: Omicron | M10: Notebook | N10: 860 | O10: 900
B11: Codemy | C11: Desktop | D11: 490 | E11: 550 | F11: 0.1224489796 | L11: Codemy | M11: Desktop | N11: 490 | O11: 550
B12: Gamind | C12: Notebook | D12: 620 | E12: 740 | F12: 0.1935483871 | L12: Gamind | M12: Notebook | N12: 620 | O12: 740
B13: Bytec | C13: Desktop | D13: 780 | E13: 870 | F13: 0.1153846154 | L13: Bytec | M13: Desktop | N13: 780 | O13: 870
B14: Omicron | C14: Desktop | D14: 880 | E14: 1200 | F14: 0.3636363636 | L14: Omicron | M14: Desktop | N14: 880 | O14: 1200
B15: Inchip | C15: Notebook | D15: 670 | E15: 850 | F15: 0.2686567164 | L15: Inchip | M15: Notebook | N15: 670 | O15: 850
B16: Omicron | C16: Notebook | D16: 1200 | E16: 1380 | F16: 0.15 | L16: Omicron | M16: Notebook | N16: 1200 | O16: 1380
